bitfinex-derivatives/quotes_BTCF0:USTF0_20220103
["timestamp","ask_amount","ask_price","bid_price","bid_amount"]
[1641251371063,0.153,46300.0,46299.0,0.77624626]
[1641251371266,0.15889766,46300.0,46299.0,0.77624626]
[1641251372265,0.00589766,46300.0,46299.0,0.77624626]
[1641251372667,0.00589766,46306.0,46299.0,0.77624626]
[1641251372866,0.00589766,46300.0,46299.0,0.77624626]
[1641251373065,9.766e-05,46305.0,46299.0,0.77624626]
[1641251373364,0.85360664,46307.0,46299.0,0.77624626]
[1641251373866,2.21307123,46309.0,46302.0,1.42232145]
[1641251374066,0.99394231,46309.0,46302.0,1.42232145]
[1641251374267,0.00583837,46308.0,46302.0,1.42232145]
[1641251374965,0.17283837,46308.0,46302.0,1.42232145]
[1641251375468,0.00583837,46307.0,46302.0,1.42232145]
[1641251375966,0.00583837,46307.0,46301.0,1.97879676]
[1641251376165,0.00583837,46307.0,46302.0,0.55647531]
[1641251376867,0.00583837,46307.0,46303.0,0.55647531]
[1641251377068,0.19083837,46307.0,46303.0,0.55647531]
[1641251377467,0.00583837,46306.0,46303.0,0.55647531]
[1641251377668,0.00583837,46306.0,46304.0,0.55647531]
[1641251378367,0.00583837,46306.0,46305.0,0.55647531]
[1641251378867,0.85360664,46307.0,46305.0,0.55647531]
[1641251379067,0.194,46306.0,46305.0,0.55647531]
[1641251379468,1.04760664,46306.0,46305.0,0.55647531]
[1641251380372,0.85360664,46306.0,46305.0,0.55647531]
[1641251380573,1.134,46305.0,46299.0,1.42232145]
[1641251380777,1.33560422,46300.0,46280.0,0.36620422]
[1641251380971,1.314,46293.0,46280.0,0.02160422]
[1641251381272,0.18,46285.0,46280.0,0.02160422]
[1641251381474,0.14033567,46283.0,46280.0,0.02160422]
[1641251381673,0.16194652,46283.0,46272.0,1.9433]
[1641251381878,1.134,46282.0,46275.0,1.65965124]
[1641251382073,0.181,46277.0,46275.0,1.65965124]
[1641251382273,0.03240992,46276.0,46275.0,1.65965124]
[1641251382673,0.03240992,46276.0,46275.0,0.52655513]
[1641251382873,0.03240992,46276.0,46275.0,0.50696613]
[1641251383077,1.329794,46276.0,46266.0,1.51069336]
[1641251383275,1.314,46270.0,46263.0,0.02]
[1641251383478,0.46067134,46264.0,46263.0,0.02]
[1641251383677,0.48229281,46264.0,46263.0,0.02]
[1641251384279,0.46067134,46264.0,46263.0,0.02]
[1641251384583,0.46067134,46264.0,46263.0,0.0322038]
[1641251384778,0.48229281,46264.0,46263.0,0.0322038]
[1641251384978,0.67029281,46264.0,46263.0,0.0322038]
[1641251385178,0.49029281,46264.0,46263.0,0.0322038]
[1641251385379,0.46867134,46264.0,46263.0,0.0322038]
[1641251386378,0.28067134,46264.0,46263.0,0.0322038]
[1641251387080,0.47467134,46264.0,46263.0,0.0322038]
[1641251388480,0.28067134,46264.0,46263.0,0.0322038]
[1641251388680,0.28067134,46264.0,46263.0,0.0973738]
[1641251388880,0.85391412,46271.0,46263.0,0.2773738]
[1641251389083,0.85391412,46271.0,46270.0,0.18]
[1641251389379,1.412e-05,46271.0,46270.0,0.18]
[1641251389582,0.14033567,46280.0,46270.0,0.36394002]
[1641251389979,0.8539424,46278.0,46271.0,0.0122038]
[1641251390182,0.8539424,46278.0,46277.0,0.18]
[1641251390384,0.8539424,46278.0,46277.0,0.284404]
[1641251390581,0.14033567,46285.0,46277.0,0.30600843]
[1641251390784,0.14033567,46285.0,46284.0,0.18]
[1641251391180,0.14033567,46285.0,46284.0,0.1922038]
[1641251391579,0.14033567,46285.0,46284.0,0.0122038]
[1641251391983,0.14033567,46285.0,46283.0,0.0338066]
[1641251392179,0.14033567,46285.0,46284.0,0.0122038]
[1641251393080,0.14033567,46285.0,46284.0,0.2032038]
[1641251394380,0.14033567,46285.0,46284.0,0.0122038]
[1641251394781,0.18533187,46285.0,46283.0,0.1350038]
[1641251394983,0.14033567,46285.0,46284.0,0.0150038]
[1641251395181,0.0449962,46297.0,46284.0,0.22960634]
[1641251395381,0.14033567,46298.0,46290.0,0.1350038]
[1641251395582,0.14033567,46298.0,46290.0,0.2246478]
[1641251395983,0.00676172,46297.0,46291.0,0.01219716]
[1641251396681,0.00676172,46297.0,46291.0,0.27075004]
[1641251397081,0.00676172,46297.0,46292.0,0.01219716]
[1641251397682,0.00676172,46297.0,46292.0,0.27075004]
[1641251397981,0.00676172,46297.0,46293.0,0.01219716]
[1641251398980,0.00576172,46297.0,46293.0,0.01219716]
[1641251399185,0.00576172,46297.0,46293.0,0.104]
[1641251399982,0.85954283,46297.0,46294.0,0.25855288]
[1641251400382,0.00576172,46296.0,46294.0,0.25855288]
[1641251400983,0.00576172,46296.0,46291.0,1.69454104]
[1641251401186,0.00576172,46296.0,46295.0,0.02159688]
[1641251401585,0.00576172,46296.0,46295.0,0.16193255]
[1641251401786,0.00576172,46296.0,46295.0,0.17412854]
[1641251402586,0.00576172,46297.0,46295.0,0.17412854]
[1641251402786,0.00576172,46296.0,46295.0,0.17412854]
[1641251402986,0.00576172,46296.0,46295.0,0.42048543]
[1641251403185,0.85378111,46298.0,46295.0,0.42048543]
[1641251403186,0.00576172,46297.0,46296.0,0.0578866]
[1641251403387,0.00576172,46297.0,46296.0,0.1928904]
[1641251403586,0.0449962,46301.0,46296.0,0.1928904]
[1641251404086,0.0449962,46301.0,46296.0,1.87772531]
[1641251404287,0.85378111,46303.0,46296.0,1.74272151]
[1641251404486,0.85378111,46303.0,46296.0,1.68483491]
[1641251404686,0.0449962,46297.0,46296.0,1.68483491]
[1641251404886,0.0449962,46297.0,46296.0,1.68583491]
[1641251405086,0.1256862,46297.0,46296.0,0.099]
[1641251407187,0.0449962,46297.0,46296.0,0.267]
[1641251407788,0.85378111,46298.0,46296.0,0.267]
[1641251407988,0.0449962,46297.0,46296.0,0.267]
[1641251408389,0.85378111,46299.0,46295.0,0.14033567]
[1641251408992,0.0449962,46297.0,46295.0,0.14033567]
[1641251409289,0.0449962,46297.0,46295.0,0.28933567]
[1641251409706,0.85378111,46298.0,46295.0,0.28933567]
[1641251409907,0.85378111,46298.0,46297.0,3.27533352]
[1641251411209,1.02978111,46298.0,46297.0,3.44933352]
[1641251412509,0.85378111,46298.0,46297.0,3.27533352]
[1641251413209,0.177,46298.0,46297.0,3.45133352]
[1641251413810,0.177,46298.0,46297.0,0.176]
[1641251415210,0.181,46298.0,46297.0,0.179]
[1641251416510,0.89877731,46299.0,46295.0,0.14033567]
[1641251416712,0.85378111,46298.0,46295.0,0.14033567]
[1641251417115,0.85378111,46298.0,46295.0,0.30933567]
[1641251417512,1.06977731,46299.0,46295.0,0.30933567]
[1641251418113,1.02478111,46299.0,46295.0,0.30933567]
[1641251418312,0.0449962,46296.0,46295.0,0.14033567]
[1641251418718,0.05162053,46296.0,46295.0,0.14033567]
[1641251419118,0.21962053,46296.0,46295.0,0.32633567]
[1641251420119,0.85378111,46298.0,46295.0,0.32733567]
[1641251420321,0.0449962,46313.0,46297.0,0.1360038]
[1641251420621,0.0449962,46305.0,46298.0,0.009794]
[1641251420820,0.14159656,46314.0,46303.0,0.001]
[1641251420821,0.0449962,46309.0,46303.0,0.001]
[1641251421021,0.0449962,46309.0,46302.0,0.009794]
[1641251421422,0.00572759,46308.0,46302.0,0.009794]
[1641251421722,0.00572759,46308.0,46303.0,0.01219454]
[1641251421921,0.00572759,46308.0,46307.0,0.14033567]
[1641251422120,0.00572759,46308.0,46307.0,0.22504567]
[1641251423221,0.00572759,46308.0,46307.0,0.41604567]
[1641251423621,0.00572759,46308.0,46307.0,0.92918241]
[1641251424423,0.00572759,46308.0,46307.0,0.73818241]
[1641251425224,0.00572759,46308.0,46307.0,0.93218241]
[1641251426527,0.00572759,46308.0,46307.0,0.73818241]
[1641251427225,0.00572759,46308.0,46307.0,0.93118241]
[1641251427429,0.00572759,46308.0,46307.0,0.79084674]
[1641251427828,0.11307713,46308.0,46307.0,4.674e-05]
[1641251428028,1.134,46307.0,46302.0,1.42864943]
[1641251428227,0.2249962,46303.0,46302.0,0.31864943]
[1641251428428,0.24659834,46303.0,46295.0,1.68113556]
[1641251428726,0.2249962,46296.0,46288.0,0.51554617]
[1641251428928,0.24807,46296.0,46285.0,0.02160214]
[1641251429129,0.00572759,46295.0,46289.0,0.0121979]
[1641251429332,0.00572759,46295.0,46288.0,0.65003877]
[1641251429528,0.00572759,46295.0,46293.0,0.02159814]
[1641251429728,0.00572759,46295.0,46293.0,0.08462814]
[1641251429930,0.00572759,46295.0,46294.0,0.0121979]
[1641251430731,0.00572759,46295.0,46294.0,0.0131979]
[1641251431132,1.21972077,46298.0,46294.0,0.22679447]
[1641251431330,0.85371592,46302.0,46297.0,0.1360038]
[1641251431530,0.85371592,46302.0,46301.0,0.001]
[1641251431929,0.14033567,46308.0,46301.0,0.001]
[1641251432129,0.14033567,46308.0,46300.0,0.15659878]
[1641251432130,0.14033567,46308.0,46306.0,0.001]
[1641251432329,0.14033567,46308.0,46307.0,0.001]
[1641251432732,0.14033567,46308.0,46307.0,0.01319424]
[1641251432933,0.14033567,46308.0,46307.0,0.01219424]
[1641251433129,0.30433567,46308.0,46307.0,0.184]
[1641251433330,0.164,46308.0,46307.0,0.20559086]
[1641251433530,0.0449962,46314.0,46307.0,0.25146941]
[1641251433729,0.0449962,46314.0,46307.0,0.2720591]
[1641251433929,0.0449962,46314.0,46308.0,0.01219403]
[1641251434129,0.14033567,46320.0,46308.0,0.01219403]
[1641251434130,0.26033567,46320.0,46313.0,0.14033567]
[1641251434333,0.0449962,46314.0,46313.0,0.14033567]
[1641251434530,0.0449962,46314.0,46313.0,0.14133567]
[1641251434730,0.0449962,46314.0,46313.0,0.15352801]
[1641251434934,0.0449962,46314.0,46313.0,0.14133567]
[1641251435133,0.0449962,46314.0,46313.0,0.33633567]
[1641251435331,0.0449962,46314.0,46313.0,0.34852789]
[1641251435732,0.0449962,46314.0,46313.0,0.33633567]
[1641251435930,0.14033567,46320.0,46313.0,0.34852781]
[1641251436230,0.0449962,46319.0,46313.0,0.33533567]
[1641251436432,0.0449962,46319.0,46313.0,0.14033567]
[1641251437131,0.0449962,46319.0,46313.0,0.33433567]
[1641251437636,0.14033567,46320.0,46318.0,0.1350038]
[1641251437832,0.14033567,46329.0,46319.0,0.02158279]
[1641251438031,0.14033567,46329.0,46322.0,0.14033567]
[1641251438230,0.14033567,46329.0,46323.0,0.009794]
[1641251438431,0.0449962,46327.0,46323.0,0.009794]
[1641251439032,0.0449962,46327.0,46325.0,0.1350038]
[1641251439232,0.0449962,46327.0,46323.0,0.204794]
[1641251439532,0.93731055,46344.0,46326.0,0.20257813]
[1641251439731,0.93731055,46344.0,46337.0,0.18]
[1641251439932,0.93731055,46344.0,46342.0,0.18]
[1641251440132,0.93731055,46344.0,46343.0,0.42100701]
[1641251440635,0.18,46345.0,46343.0,0.42100701]
[1641251440834,0.18,46349.0,46343.0,0.42100701]
[1641251441233,0.18,46349.0,46343.0,0.59900701]
[1641251441436,1.70821517,46354.0,46343.0,0.59900701]
[1641251441733,1.70821517,46354.0,46344.0,0.05576005]
[1641251441934,1.70821517,46354.0,46344.0,0.12643005]
[1641251442534,0.12,46355.0,46344.0,0.12643005]
[1641251443133,0.12,46355.0,46344.0,0.24867]
[1641251443934,0.12,46355.0,46345.0,0.53791718]
[1641251444134,0.12,46355.0,46348.0,0.14033567]
[1641251445136,0.12,46355.0,46348.0,0.31933567]
[1641251445940,0.18,46362.0,46349.0,0.009794]
[1641251446137,0.48493567,46367.0,46354.0,0.14033567]
[1641251446538,0.12,46363.0,46354.0,0.14033567]
[1641251446737,0.18,46363.0,46354.0,0.14033567]
[1641251447140,0.18,46363.0,46354.0,0.33033567]
[1641251447739,0.18,46362.0,46354.0,0.33033567]
[1641251448138,0.18,46356.0,46354.0,0.33033567]
[1641251448538,0.18,46355.0,46354.0,0.14033567]
[1641251449341,0.18,46355.0,46354.0,0.30133567]
[1641251451247,0.18,46355.0,46354.0,0.42933567]
[1641251452646,0.02157686,46356.0,46354.0,0.14033567]
[1641251453246,0.02157686,46356.0,46354.0,0.24633567]
[1641251453848,0.18,46355.0,46354.0,0.24633567]
[1641251454048,0.29374733,46355.0,46354.0,0.24633567]
[1641251454449,0.29374733,46355.0,46354.0,0.14033567]
[1641251455051,1.64321517,46369.0,46354.0,0.15012967]
[1641251455251,0.2,46389.0,46368.0,0.18]
[1641251455451,0.18,46378.0,46368.0,0.08346]
[1641251456054,0.18,46378.0,46375.0,0.14033567]
[1641251456254,0.18,46381.0,46375.0,0.14033567]
[1641251456655,0.0001,46380.0,46375.0,0.14033567]
[1641251457355,0.0001,46380.0,46375.0,0.31933567]
[1641251457856,0.18,46376.0,46354.0,2.73654042]
[1641251458055,0.06,46357.0,46354.0,0.80524042]
[1641251458257,0.12,46356.0,46354.0,0.80524042]
[1641251458467,0.08107,46357.0,46354.0,0.80524042]
[1641251458668,0.08107,46357.0,46356.0,0.66490475]
[1641251458867,0.14107,46357.0,46356.0,0.66490475]
[1641251459266,0.32707,46357.0,46356.0,0.74490475]
[1641251459672,0.44707,46357.0,46356.0,0.74490475]
[1641251460270,0.44707,46357.0,46356.0,0.08]
[1641251460670,0.26107,46357.0,46354.0,0.14033567]
[1641251460872,0.08107,46357.0,46354.0,0.14033567]
[1641251461073,0.18,46355.0,46354.0,0.14033567]
[1641251461671,0.06,46355.0,46354.0,0.14033567]
[1641251462273,0.06,46356.0,46354.0,0.14033567]
[1641251462475,0.27807,46357.0,46354.0,0.14033567]
[1641251462675,0.06,46356.0,46354.0,0.14033567]
[1641251463274,0.255,46356.0,46354.0,0.14033567]
[1641251463976,0.375,46356.0,46354.0,0.14033567]
[1641251464676,0.20157425,46363.0,46354.0,0.14033567]
[1641251465076,0.18,46356.0,46354.0,0.14033567]
[1641251465277,0.18,46356.0,46355.0,0.81760102]
[1641251465478,0.39457425,46363.0,46355.0,0.81760102]
[1641251466277,0.39457425,46363.0,46354.0,0.14033567]
[1641251466477,0.12,46359.0,46354.0,0.14033567]
[1641251466677,0.39457425,46363.0,46354.0,0.14033567]
[1641251467278,0.39557425,46363.0,46354.0,0.14033567]
[1641251467685,0.39557425,46363.0,46355.0,0.79739052]
[1641251468280,0.12,46360.0,46355.0,0.79739052]
[1641251468682,0.18,46360.0,46355.0,0.79739052]
[1641251468882,0.02157425,46363.0,46355.0,0.79739052]
[1641251469281,0.373,46360.0,46355.0,0.79739052]
[1641251469481,0.193,46360.0,46355.0,0.79739052]
[1641251470587,0.3446,46374.0,46355.0,0.79739052]
[1641251470588,0.07533567,46370.0,46359.0,0.18]
[1641251470783,0.47579202,46387.0,46369.0,0.12]
[1641251470985,0.47579202,46387.0,46379.0,0.12]
[1641251471185,0.47579202,46387.0,46379.0,0.08368]
[1641251472184,0.47579202,46387.0,46383.0,0.02155406]
[1641251472384,0.47579202,46387.0,46383.0,0.62256107]
[1641251472586,1.82785467,46394.0,46383.0,0.44256107]
[1641251472885,0.18,46394.0,46384.0,0.10649046]
[1641251473184,0.18,46394.0,46383.0,0.44256107]
[1641251473383,0.18,46402.0,46383.0,0.63556107]
[1641251473887,1.21770937,46386.0,46385.0,0.79739052]
[1641251474086,1.39770937,46386.0,46385.0,0.79739052]
[1641251474284,2.53170937,46386.0,46385.0,0.79739052]
[1641251474484,2.53170937,46386.0,46371.0,0.02156255]
[1641251474485,1.39770937,46386.0,46373.0,0.14033567]
[1641251474685,0.18,46382.0,46373.0,0.14033567]
[1641251474986,0.18,46382.0,46376.0,1.39429274]
[1641251475385,0.374,46382.0,46376.0,1.39429274]
[1641251476086,0.85251467,46377.0,46373.0,0.14033567]
[1641251476489,0.85251467,46377.0,46376.0,0.20155978]
[1641251476687,0.85251467,46377.0,46376.0,0.10786978]
[1641251476888,0.85251467,46377.0,46376.0,0.28786978]
[1641251477088,0.85251467,46377.0,46376.0,0.10786978]
[1641251477289,0.85251467,46381.0,46376.0,0.29886978]
[1641251477890,0.85251467,46381.0,46378.0,0.18]
[1641251478088,0.85251467,46381.0,46376.0,0.29886978]
[1641251478291,0.85251467,46381.0,46378.0,0.18]
[1641251478489,0.85251467,46381.0,46380.0,0.14033567]
[1641251478691,1.03251467,46381.0,46373.0,1.53462841]
[1641251478891,0.06014,46381.0,46378.0,1.39429274]
[1641251479292,0.25114,46381.0,46378.0,1.39429274]
[1641251480094,0.191,46381.0,46378.0,1.45405274]
[1641251480295,1.21770937,46388.0,46380.0,0.18]
[1641251480594,1e-08,46389.0,46387.0,0.14033567]
[1641251480794,1e-08,46389.0,46388.0,0.02155393]
[1641251480994,1e-08,46389.0,46388.0,0.084064]
[1641251481394,1e-08,46389.0,46388.0,0.275064]
[1641251481597,1e-08,46389.0,46388.0,0.29661609]
[1641251482395,1e-08,46389.0,46388.0,0.275064]
[1641251482597,1e-08,46389.0,46388.0,0.26527]
[1641251482993,1e-08,46389.0,46388.0,0.191]
[1641251483197,0.06100001,46389.0,46364.0,0.02]
[1641251483396,0.18,46377.0,46373.0,1.51235304]
[1641251483595,0.18,46374.0,46373.0,1.51235304]
[1641251484394,0.60100701,46374.0,46373.0,1.51235304]
[1641251484897,0.62257787,46374.0,46373.0,1.51235304]
[1641251485095,0.62257787,46374.0,46365.0,0.95020061]
[1641251485296,0.18,46372.0,46364.0,0.02]
[1641251485495,0.18,46369.0,46364.0,0.02]
[1641251485695,0.63457787,46374.0,46364.0,0.02]
[1641251485895,0.02156327,46387.0,46373.0,0.14156137]
[1641251486095,0.02156327,46387.0,46373.0,0.02156137]
[1641251486396,0.18,46385.0,46378.0,0.14033567]
[1641251486594,0.18,46385.0,46378.0,0.22672567]
[1641251486796,0.14033568,46389.0,46378.0,0.22672567]
[1641251486994,0.18,46385.0,46378.0,0.22672567]
[1641251487396,0.18,46385.0,46378.0,0.40172567]
[1641251487594,0.14033568,46389.0,46378.0,0.40172567]
[1641251487795,0.18,46385.0,46378.0,0.40172567]
[1641251488398,1e-08,46389.0,46384.0,0.46067134]
[1641251488600,0.0001,46400.0,46388.0,0.18]
[1641251488797,0.0001,46400.0,46393.0,0.02155222]
[1641251488996,0.0001,46400.0,46393.0,0.03134622]
[1641251489399,0.0001,46400.0,46393.0,0.21334622]
[1641251489796,0.0001,46400.0,46394.0,0.10117211]
[1641251490197,0.0001,46400.0,46396.0,0.06]
[1641251490398,0.0001,46400.0,46399.0,0.28067134]
[1641251490602,0.1801,46400.0,46399.0,0.34345134]
[1641251490809,0.0001,46400.0,46399.0,0.28067134]
[1641251491401,0.0001,46400.0,46399.0,0.46767134]
[1641251493402,0.0001,46400.0,46399.0,0.46367134]
[1641251494804,0.0001,46400.0,46399.0,0.28067134]
[1641251495005,0.0001,46400.0,46384.0,0.14033567]
[1641251495205,0.26358838,46400.0,46384.0,0.17168614]
[1641251495409,1.19603,46400.0,46399.0,0.171]
[1641251495606,1.37703,46400.0,46384.0,0.14033567]
[1641251495805,0.18,46385.0,46384.0,0.14033567]
[1641251496007,0.23893,46385.0,46384.0,0.14033567]
[1641251496208,0.05893,46385.0,46384.0,0.14033567]
[1641251496405,0.05893,46385.0,46379.0,0.14033567]
[1641251497209,0.14033567,46390.0,46379.0,0.14033567]
[1641251497406,0.179,46385.0,46379.0,0.14033567]
[1641251498705,0.14033567,46390.0,46379.0,0.14033567]
[1641251498906,0.14033567,46390.0,46379.0,0.21375567]
[1641251499210,1.21064989,46416.0,46389.0,0.57996257]
[1641251499408,0.67796048,46416.0,46410.0,0.18]
[1641251499622,0.67796048,46416.0,46411.0,0.009794]
[1641251499825,1.52535708,46416.0,46412.0,0.05790418]
[1641251500023,0.8473966,46416.0,46412.0,0.05790418]
[1641251500223,0.8473966,46416.0,46410.0,0.08519]
[1641251500422,0.8473966,46416.0,46415.0,0.42100701]
[1641251501022,0.18,46419.0,46415.0,0.42100701]
[1641251501425,0.182,46416.0,46415.0,0.59200701]
[1641251502724,0.0002,46420.0,46415.0,0.42100701]
[1641251502924,0.0002,46420.0,46415.0,0.47996701]
[1641251502925,0.18,46416.0,46415.0,0.47996701]
[1641251503525,0.167,46416.0,46415.0,0.47996701]
[1641251504125,0.347,46416.0,46415.0,0.47996701]
[1641251504344,0.4,46434.0,46415.0,0.47996701]
[1641251504345,0.00215,46447.0,46415.0,2.36972358]
[1641251504530,0.29859762,46450.0,46423.0,1.134]
[1641251504727,0.27459762,46450.0,46435.0,0.12]
[1641251504928,0.18,46459.0,46436.0,0.009794]
[1641251505126,0.13499999,46448.0,46443.0,0.04500001]
[1641251505326,2.10568734,46467.0,46443.0,0.04500001]
[1641251505327,0.13499999,46446.0,46443.0,0.04500001]
[1641251505525,0.02153164,46458.0,46436.0,0.009794]
[1641251505526,0.13499999,46459.0,46436.0,0.167794]
[1641251505727,0.15653139,46459.0,46441.0,0.0215314]
[1641251505928,0.07499999,46456.0,46443.0,0.04500001]
[1641251506125,0.0815314,46459.0,46441.0,0.0215314]
[1641251506126,0.15653142,46459.0,46441.0,0.02153143]
[1641251506327,0.15653916,46442.0,46436.0,0.158]
[1641251506529,0.13499999,46437.0,46436.0,0.158]
[1641251506727,0.13499999,46437.0,46421.0,0.02154081]
[1641251507025,0.09353081,46442.0,46424.0,0.04500001]
[1641251507228,0.07779999,46439.0,46431.0,0.10220001]
[1641251507430,0.07499999,46439.0,46431.0,0.10220001]
[1641251507628,0.07499999,46439.0,46424.0,0.18758001]
[1641251507827,0.07499999,46439.0,46432.0,0.10220001]
[1641251508028,0.07499999,46439.0,46425.0,0.02153878]
[1641251508326,0.07499999,46439.0,46432.0,0.10220001]
[1641251508527,0.07499999,46439.0,46438.0,0.42100701]
[1641251509129,0.07779999,46446.0,46438.0,0.49208701]
[1641251509327,0.07779999,46443.0,46438.0,0.49208701]
[1641251509729,0.07499999,46443.0,46438.0,0.49208701]
[1641251509932,0.07779999,46443.0,46438.0,0.49208701]
[1641251510130,0.001,46439.0,46438.0,0.49208701]
[1641251510531,0.001,46439.0,46438.0,0.42100701]
[1641251510729,0.07879999,46439.0,46438.0,0.42100701]
[1641251511731,0.10034092,46439.0,46438.0,0.42100701]
[1641251511929,0.10034092,46439.0,46425.0,1.39774852]
[1641251512131,0.02154093,46439.0,46425.0,1.39774852]
[1641251512332,0.07499999,46430.0,46425.0,1.39774852]
[1641251512535,0.02154093,46439.0,46429.0,0.38287135]
[1641251512732,0.02154093,46439.0,46429.0,0.32567135]
[1641251513036,0.07779999,46431.0,46429.0,0.28067134]
[1641251513234,0.07796,46431.0,46430.0,0.10220001]
[1641251513432,0.07796,46431.0,46429.0,0.28067134]
[1641251513832,0.07779999,46430.0,46429.0,0.28067134]
[1641251514032,0.07879999,46430.0,46429.0,0.28067134]
[1641251514433,0.07879999,46430.0,46421.0,1.39774852]
[1641251514634,0.07779999,46425.0,46421.0,1.39774852]
[1641251514833,1.43467429,46431.0,46421.0,1.39774852]
[1641251514834,0.07779999,46422.0,46421.0,1.39774852]
[1641251515037,0.07779999,46425.0,46421.0,1.39774852]
[1641251515234,0.8515678,46423.0,46420.0,0.14033567]
[1641251515434,0.165,46422.0,46421.0,0.142]
[1641251516236,0.165,46422.0,46421.0,0.16354037]
[1641251516638,1.38137862,46422.0,46421.0,0.16354037]
[1641251516837,1.21637862,46422.0,46421.0,0.12374038]
[1641251517439,1.35637862,46422.0,46421.0,0.28774038]
[1641251517642,0.14,46422.0,46421.0,0.18554037]
[1641251518140,0.14,46422.0,46421.0,0.26620001]
[1641251518742,0.85156323,46424.0,46420.0,0.14033567]
[1641251519446,0.1502,46424.0,46423.0,0.30373473]
[1641251519643,0.40447301,46450.0,46423.0,0.68216258]
[1641251519844,0.39347301,46450.0,46449.0,0.10220001]
[1641251520046,0.39347301,46450.0,46449.0,0.09328]
[1641251520250,0.44549096,46453.0,46449.0,0.19548001]
[1641251520444,0.44549096,46453.0,46450.0,0.02152751]
[1641251520845,0.21823566,46460.0,46449.0,0.33581568]
[1641251521045,0.07779999,46456.0,46449.0,0.33581568]
[1641251521244,0.07779999,46452.0,46449.0,0.23361567]
[1641251521444,0.07779999,46452.0,46449.0,0.40161567]
[1641251521644,0.07779999,46452.0,46449.0,0.26128]
[1641251521845,0.02153545,46450.0,46449.0,0.168]
[1641251522244,0.02253545,46450.0,46449.0,0.168]
[1641251522646,0.16287112,46450.0,46440.0,0.24253568]
[1641251522848,0.16187112,46450.0,46440.0,0.14033567]
[1641251523446,0.07779999,46441.0,46440.0,0.31133567]
[1641251523646,0.15033999,46441.0,46440.0,0.31133567]
[1641251523845,0.14753999,46441.0,46440.0,0.171]
[1641251524446,0.14853999,46441.0,46440.0,0.171]
[1641251524650,0.07254,46441.0,46440.0,0.171]
[1641251524846,0.15767999,46441.0,46432.0,1.53808419]
[1641251525047,0.10142051,46441.0,46432.0,0.14033567]
[1641251525448,0.10142051,46441.0,46432.0,0.30533567]
[1641251525646,0.001,46436.0,46432.0,0.30533567]
[1641251525845,0.001,46433.0,46432.0,0.30533567]
[1641251526646,0.001,46433.0,46427.0,0.14033567]
[1641251526847,0.02154227,46436.0,46427.0,0.14033567]
[1641251527448,0.02154227,46436.0,46427.0,0.30733567]
[1641251528449,0.07779999,46428.0,46427.0,0.167]
[1641251528749,2.65783036,46428.0,46418.0,1.39774852]
[1641251528949,0.09935092,46419.0,46418.0,1.39774852]
[1641251529349,0.10035092,46419.0,46418.0,1.39774852]
[1641251529550,0.26535092,46419.0,46418.0,1.39774852]
[1641251529949,0.26535092,46419.0,46411.0,3.01479723]
[1641251530152,0.26535092,46419.0,46411.0,1.49994853]
[1641251530352,0.26535092,46419.0,46411.0,1.39774852]
[1641251530555,0.14133567,46415.0,46411.0,1.39774852]
[1641251530751,0.20791567,46415.0,46411.0,1.39774852]
[1641251531253,1.42467244,46415.0,46407.0,0.14033567]
[1641251531451,1.59567244,46415.0,46408.0,0.10220001]
[1641251532852,0.37891567,46415.0,46408.0,0.10220001]
[1641251533457,0.37691567,46415.0,46408.0,0.10220001]
[1641251533654,0.45471566,46415.0,46408.0,0.10220001]
[1641251533854,0.45471566,46415.0,46407.0,0.14033567]
[1641251533855,0.37591567,46415.0,46411.0,0.10220001]
[1641251534054,0.37591567,46415.0,46407.0,0.14033567]
[1641251534255,0.23558,46415.0,46413.0,0.10220001]
[1641251534457,0.169,46415.0,46413.0,0.10220001]
[1641251534656,0.169,46415.0,46414.0,0.16033567]
[1641251535457,0.142,46415.0,46414.0,0.30033567]
[1641251536758,0.06397,46418.0,46414.0,0.02]
[1641251537559,0.148,46418.0,46414.0,0.086]
[1641251538562,1.70276682,46436.0,46417.0,0.56287135]
[1641251538861,0.07779999,46432.0,46431.0,0.10220001]
[1641251539060,0.07779999,46432.0,46431.0,0.06535]
[1641251539460,0.10034542,46432.0,46431.0,0.20935]
[1641251540363,0.10034542,46432.0,46431.0,0.144]
[1641251540565,0.24068109,46432.0,46431.0,0.144]
[1641251541175,0.24068109,46432.0,46431.0,0.0001]
[1641251541375,0.24068109,46432.0,46417.0,0.14033567]
[1641251541574,1.134,46431.0,46417.0,0.14033567]
[1641251541875,0.07779999,46418.0,46414.0,0.02]
[1641251542075,0.07779999,46415.0,46414.0,0.02]
[1641251542675,0.21813566,46415.0,46414.0,0.02]
[1641251543074,0.14133567,46415.0,46414.0,0.02]
[1641251543474,0.26633567,46415.0,46414.0,0.02]
[1641251543874,0.34413566,46415.0,46414.0,0.02]
[1641251545475,0.36413566,46415.0,46414.0,0.02]
[1641251546874,0.21913566,46415.0,46414.0,0.02]
[1641251547475,0.36713566,46415.0,46414.0,0.02]
[1641251548776,0.21913566,46415.0,46414.0,0.02]
[1641251549176,0.14133567,46415.0,46414.0,0.02]
[1641251549377,0.21913566,46415.0,46414.0,0.02]
[1641251549577,0.28633567,46415.0,46414.0,0.02]
[1641251550177,0.36413566,46415.0,46414.0,0.02]
[1641251551384,0.36413566,46415.0,46402.0,1.07720305]
[1641251551385,1.51969312,46415.0,46402.0,1.07720305]
[1641251551582,0.07779999,46403.0,46402.0,1.07720305]
[1641251551779,0.18554896,46403.0,46402.0,1.07720305]
[1641251552279,0.10774897,46403.0,46401.0,1.39774852]
[1641251552480,0.10774897,46403.0,46396.0,0.14033567]
[1641251552481,0.001,46402.0,46396.0,0.14033567]
[1641251552680,0.10674897,46403.0,46396.0,0.14033567]
[1641251552981,0.14033567,46403.0,46400.0,0.10220001]
[1641251553180,0.14033567,46403.0,46402.0,0.10220001]
[1641251553381,0.14033567,46403.0,46400.0,0.10220001]
[1641251553583,0.27733567,46403.0,46400.0,0.10220001]
[1641251553781,1.21722508,46401.0,46400.0,0.10220001]
[1641251554383,0.16188927,46412.0,46400.0,0.10220001]
[1641251554682,1.21713156,46404.0,46403.0,0.10220001]
[1641251554881,1.21713156,46404.0,46403.0,0.24253568]
[1641251555482,1.21813156,46404.0,46403.0,0.24253568]
[1641251555683,1.21813156,46404.0,46403.0,0.39153568]
[1641251556189,1.21713156,46405.0,46403.0,1.36531575]
[1641251556886,1.21713156,46405.0,46404.0,0.97378007]
[1641251557286,1.21813156,46405.0,46404.0,0.97378007]
[1641251557687,1.21813156,46405.0,46404.0,1.12178007]